fUST/lending_fUST_20250408
["ID","MTS","AMOUNT","RATE_DAILY","PERIOD"]
[357496610,1744089052188,-951.08,0.00021356,2]
[357496611,1744089052198,-500.0,0.00021356,2]
[357496612,1744089052208,-840.84,0.00021356,2]
[357496613,1744089052218,-500.0,0.00021356,2]
[357496614,1744089052227,-500.0,0.00021356,2]
[357496615,1744089052237,-1496.91,0.00021356,2]
[357496616,1744089052246,-853.7,0.00021356,2]
[357496617,1744089052256,-500.0,0.00021356,2]
[357496618,1744089052266,-500.0,0.00021356,2]
[357496619,1744089052275,-500.0,0.00021357,2]
[357496620,1744089052285,-500.0,0.00021357,2]
[357496621,1744089052295,-500.0,0.00021357,2]
[357496622,1744089052304,-725.31,0.00021357,2]
[357496623,1744089052314,-2542.45,0.00021357,2]
[357496624,1744089052324,-500.0,0.00021357,2]
[357496625,1744089052334,-500.0,0.00021357,2]
[357496626,1744089052344,-500.0,0.00021357,2]
[357496627,1744089052354,-184.45681545,0.00021357,2]
[357496628,1744089052363,-500.0,0.00021357,2]
[357496629,1744089052372,-500.0,0.00021357,2]
[357496630,1744089052382,-500.0,0.00021357,2]
[357496631,1744089052391,-500.0,0.00021357,2]
[357496632,1744089052401,-864.99,0.00021357,2]
[357496633,1744089052411,-441.1310627,0.00021357,2]
[357496634,1744089052421,-500.0,0.00021357,2]
[357496635,1744089052435,-500.0,0.00021358,2]
[357496636,1744089052444,-638.63061178,0.00021358,2]
[357496637,1744089052455,-500.0,0.00021358,2]
[357496638,1744089052464,-500.0,0.00021358,2]
[357496639,1744089052475,-500.0,0.00021511,2]
[357496640,1744089052485,-3306.77,0.00021627,2]
[357496641,1744089052494,-1076.62,0.00021627,2]
[357496642,1744089052505,-500.0,0.00021627,2]
[357496643,1744089052514,-871.92,0.00021628,2]
[357496644,1744089052524,-500.0,0.00021628,2]
[357496645,1744089052534,-1067.01,0.00021628,2]
[357496646,1744089052543,-500.0,0.00021628,2]
[357496647,1744089052553,-3362.4,0.00021628,2]
[357496648,1744089052563,-1275.39,0.00021628,2]
[357496649,1744089052573,-1270.81,0.00021628,2]
[357496650,1744089052583,-747.45,0.00021628,2]
[357496651,1744089052593,-1851.44,0.00021628,2]
[357496652,1744089052602,-716.97,0.00021628,2]
[357496653,1744089052612,-500.0,0.00021628,2]
[357496654,1744089052621,-1266.24,0.00021628,2]
[357496655,1744089052631,-1102.77,0.00021628,2]
[357496656,1744089052640,-794.99,0.00021628,2]
[357496657,1744089052649,-500.0,0.00021628,2]
[357496658,1744089052659,-500.0,0.00021628,2]
[357496659,1744089052668,-1509.7,0.00021628,2]
[357496660,1744089052678,-500.0,0.00021629,2]
[357496661,1744089052687,-500.0,0.00021629,2]
[357496662,1744089052696,-500.0,0.00021629,2]
[357496663,1744089052706,-500.0,0.00021629,2]
[357496664,1744089052716,-842.38,0.00021629,2]
[357496665,1744089052726,-500.0,0.00021629,2]
[357496666,1744089052735,-500.0,0.00021629,2]
[357496667,1744089052745,-615.44,0.00021629,2]
[357496668,1744089052755,-500.0,0.00021629,2]
[357496669,1744089052765,-500.0,0.00021629,2]
[357496670,1744089052774,-500.0,0.00021629,2]
[357496671,1744089052784,-500.0,0.00021629,2]
[357496672,1744089052794,-500.0,0.00021629,2]
[357496673,1744089052803,-500.0,0.00021629,2]
[357496674,1744089052813,-500.0,0.00021629,2]
[357496675,1744089052823,-500.0,0.00021629,2]
[357496676,1744089052832,-500.0,0.00021629,2]
[357496677,1744089052841,-471.55735103,0.00021629,2]
[357496678,1744089052851,-500.0,0.00021629,2]
[357496679,1744089052861,-500.0,0.00021629,2]
[357496680,1744089052870,-871.68,0.00021629,2]
[357496681,1744089052880,-500.0,0.00021629,2]
[357496682,1744089052889,-1498.88,0.00021629,2]
[357496683,1744089052899,-779.37,0.00021629,2]
[357496684,1744089052908,-500.0,0.00021629,2]
[357496685,1744089052918,-914.47,0.00021629,2]
[357496686,1744089052927,-500.0,0.00021629,2]
[357496687,1744089052937,-500.0,0.00021629,2]
[357496688,1744089052946,-500.0,0.00021629,2]
[357496689,1744089052957,-1105.01,0.00021629,2]
[357496690,1744089052967,-500.0,0.00021629,2]
[357496691,1744089052976,-545.89616384,0.00021629,2]
[357496692,1744089052986,-500.0,0.00021629,2]
[357496693,1744089052996,-500.0,0.00021629,2]
[357496694,1744089053005,-500.0,0.00021629,2]
[357496695,1744089053015,-500.0,0.00021629,2]
[357496696,1744089053024,-500.0,0.00021629,2]
[357496697,1744089053033,-193.78895475,0.00021629,2]
[357496698,1744089053043,-870.44,0.00021629,2]
[357496699,1744089053053,-2158.84,0.00021629,2]
[357496700,1744089053062,-831.16,0.00021629,2]
[357496701,1744089053072,-500.0,0.00021629,2]
[357496702,1744089053082,-500.0,0.00021629,2]
[357496703,1744089053091,-500.0,0.00021629,2]
[357496704,1744089053101,-1599.58,0.00021629,2]
[357496705,1744089053110,-790.4,0.00021629,2]
[357496706,1744089053120,-890.44,0.00021629,2]
[357496707,1744089053130,-807.26,0.00021629,2]
[357496708,1744089053139,-500.0,0.00021629,2]
[357496709,1744089053149,-5903.44,0.00021629,2]
[357496710,1744089053159,-631.24,0.00021629,2]
[357496711,1744089053168,-588.4,0.00021629,2]
[357496712,1744089053178,-1110.71,0.0002163,2]
[357496713,1744089053187,-500.0,0.0002163,2]
[357496714,1744089053197,-500.0,0.0002163,2]
[357496715,1744089053206,-922.18,0.0002163,2]
[357496716,1744089053216,-500.0,0.0002163,2]
[357496717,1744089053226,-755.95,0.0002163,2]
[357496718,1744089053236,-718.24,0.0002163,2]
[357496719,1744089053245,-500.0,0.0002163,2]
[357496720,1744089053255,-858.2,0.0002163,2]
[357496721,1744089053264,-870.52,0.0002163,2]
[357496722,1744089053274,-399.99447154,0.0002163,2]
[357496723,1744089053283,-500.0,0.0002163,2]
[357496724,1744089053293,-500.0,0.0002163,2]
[357496725,1744089053303,-621.87,0.0002163,2]
[357496726,1744089053312,-737.3,0.0002163,2]
[357496727,1744089053322,-795.71,0.0002163,2]
[357496728,1744089053331,-1271.72,0.0002163,2]
[357496729,1744089053341,-565.11567876,0.0002163,2]
[357496730,1744089053350,-1510.87,0.0002163,2]
[357496731,1744089053360,-1537.45,0.0002163,2]
[357496732,1744089053370,-951.08,0.0002163,2]
[357496733,1744089053380,-509.43973884,0.0002163,2]
[357496734,1744089053389,-840.84,0.0002163,2]
[357496735,1744089053399,-500.0,0.0002163,2]
[357496736,1744089053408,-151.0,0.0002163,2]
[357496737,1744089053417,-151.0,0.0002163,2]
[357496738,1744089053426,-500.0,0.0002163,2]
[357496739,1744089053439,-1496.91,0.0002163,2]
[357496740,1744089053448,-853.7,0.0002163,2]
[357496741,1744089053458,-151.0,0.0002163,2]
[357496742,1744089053467,-227.884879,0.0002163,2]
[357496743,1744089053477,-227.884879,0.0002163,2]
[357496744,1744089053487,-165.514806,0.0002163,2]
[357496745,1744089053497,-500.0,0.0002163,2]
[357496746,1744089053507,-401.51936171,0.0002163,2]
[357496747,1744089053517,-212.080037,0.0002163,2]
[357496748,1744089053527,-212.080037,0.0002163,2]
[357496749,1744089053536,-151.0,0.0002163,2]
[357496750,1744089053546,-151.0,0.0002163,2]
[357496751,1744089053555,-151.0,0.0002163,2]
[357496752,1744089053565,-500.0,0.00021631,2]
[357496753,1744089053574,-500.0,0.00021631,2]
[357496754,1744089053584,-500.0,0.00021631,2]
[357496755,1744089053594,-725.31,0.00021631,2]
[357496756,1744089053604,-2542.45,0.00021631,2]
[357496757,1744089053614,-500.0,0.00021631,2]
[357496758,1744089053623,-500.0,0.00021631,2]
[357496759,1744089053632,-426.59909462,0.00021631,2]
[357496760,1744089053642,-500.0,0.00021631,2]
[357496761,1744089053651,-214.59994313,0.00021631,2]
[357496762,1744089053661,-500.0,0.00021631,2]
[357496763,1744089053671,-500.0,0.00021631,2]
[357496764,1744089053680,-864.99,0.00021631,2]
[357496765,1744089053690,-500.0,0.00021631,2]
[357496766,1744089053699,-500.0,0.00021632,2]
[357496767,1744089053709,-500.0,0.00021632,2]
[357496768,1744089053719,-459.00766799,0.00021632,2]
[357496769,1744089053729,-168.0,0.00021633,2]
[357496770,1744089053738,-168.0,0.00021633,2]
[357496771,1744089053747,-288.9796707,0.00021633,2]
[357496772,1744089053896,-420.0,0.00021759,2]
[357496773,1744089053907,-160.968227,0.0002176,2]
[357496774,1744089053917,-151.183217,0.0002176,2]
[357496775,1744089053927,-151.0,0.0002176,2]
[357496776,1744089053937,-1629.718022,0.0002176,2]
[357496777,1744089053947,-1629.718022,0.0002176,2]
[357496778,1744089053957,-3306.77,0.00021901,2]
[357496779,1744089053967,-1076.62,0.00021901,2]
[357496780,1744089053976,-500.0,0.00021901,2]
[357496781,1744089053986,-871.92,0.00021902,2]
[357496782,1744089053995,-500.0,0.00021902,2]
[357496783,1744089054004,-1067.01,0.00021902,2]
[357496784,1744089054014,-500.0,0.00021902,2]
[357496785,1744089054024,-3362.4,0.00021902,2]
[357496786,1744089054033,-1275.39,0.00021902,2]
[357496787,1744089054043,-1270.81,0.00021902,2]
[357496788,1744089054052,-747.45,0.00021902,2]
[357496789,1744089054062,-1851.44,0.00021902,2]
[357496790,1744089054071,-716.97,0.00021902,2]
[357496791,1744089054081,-500.0,0.00021902,2]
[357496792,1744089054091,-1266.24,0.00021902,2]
[357496793,1744089054100,-1102.77,0.00021902,2]
[357496794,1744089054110,-794.99,0.00021902,2]
[357496795,1744089054119,-500.0,0.00021902,2]
[357496796,1744089054129,-500.0,0.00021902,2]
[357496797,1744089054138,-1509.7,0.00021902,2]
[357496798,1744089054148,-500.0,0.00021903,2]
[357496799,1744089054157,-500.0,0.00021903,2]
[357496800,1744089054167,-500.0,0.00021903,2]
[357496801,1744089054176,-500.0,0.00021903,2]
[357496802,1744089054185,-842.38,0.00021903,2]
[357496803,1744089054195,-500.0,0.00021903,2]
[357496804,1744089054204,-500.0,0.00021903,2]
[357496805,1744089054213,-615.44,0.00021903,2]
[357496806,1744089054223,-500.0,0.00021903,2]
[357496807,1744089054233,-500.0,0.00021903,2]
[357496808,1744089054242,-500.0,0.00021903,2]
[357496809,1744089054253,-500.0,0.00021903,2]
[357496810,1744089054262,-500.0,0.00021903,2]
[357496811,1744089054272,-500.0,0.00021903,2]
[357496812,1744089054281,-203.13274718,0.00021903,2]
[357496813,1744089054290,-500.0,0.00021903,2]
[357496814,1744089054299,-500.0,0.00021903,2]
[357496815,1744089054307,-500.0,0.00021903,2]
[357496816,1744089054316,-500.0,0.00021903,2]
[357496817,1744089054325,-871.68,0.00021903,2]
[357496818,1744089054333,-500.0,0.00021903,2]
[357496819,1744089054343,-1498.88,0.00021903,2]
[357496820,1744089054352,-779.37,0.00021903,2]
[357496821,1744089054362,-500.0,0.00021903,2]
[357496822,1744089054371,-914.47,0.00021903,2]
[357496823,1744089054380,-500.0,0.00021903,2]
[357496824,1744089054389,-500.0,0.00021903,2]
[357496825,1744089054399,-500.0,0.00021903,2]
[357496826,1744089054408,-1105.01,0.00021903,2]
[357496827,1744089054417,-500.0,0.00021903,2]
[357496828,1744089054427,-500.0,0.00021903,2]
[357496829,1744089054439,-500.0,0.00021903,2]
[357496830,1744089054448,-339.73060867,0.00021903,2]
[357496831,1744089054458,-500.0,0.00021903,2]
[357496832,1744089054468,-500.0,0.00021903,2]
[357496833,1744089054478,-870.44,0.00021903,2]
[357496834,1744089054485,-2158.84,0.00021903,2]
[357496835,1744089054493,-536.97707759,0.00021903,2]
[357496836,1744089054619,-294.18292241,0.00021903,2]
[357496837,1744089054628,-500.0,0.00021903,2]
[357496838,1744089054635,-500.0,0.00021903,2]
[357496839,1744089054643,-500.0,0.00021903,2]
[357496840,1744089054651,-1599.58,0.00021903,2]
[357496841,1744089054660,-790.4,0.00021903,2]
[357496842,1744089054668,-890.44,0.00021903,2]
[357496843,1744089054675,-807.26,0.00021903,2]
[357496844,1744089054683,-500.0,0.00021903,2]
[357496845,1744089054690,-5903.44,0.00021903,2]
[357496846,1744089054697,-631.24,0.00021903,2]
[357496847,1744089054705,-588.4,0.00021903,2]
[357496848,1744089054713,-1110.71,0.00021904,2]
[357496849,1744089054722,-500.0,0.00021904,2]
[357496850,1744089054729,-500.0,0.00021904,2]
[357496851,1744089054736,-922.18,0.00021904,2]
[357496852,1744089054743,-500.0,0.00021904,2]
[357496853,1744089054753,-755.95,0.00021904,2]
[357496854,1744089054762,-718.24,0.00021904,2]
[357496855,1744089054771,-500.0,0.00021904,2]
[357496856,1744089054779,-858.2,0.00021904,2]
[357496857,1744089054788,-870.52,0.00021904,2]
[357496858,1744089054797,-151.0,0.00021904,2]
[357496859,1744089054806,-151.0,0.00021904,2]
[357496860,1744089054814,-343.06532162,0.00021904,2]
[357496861,1744089054822,-151.0,0.00021904,2]
[357496862,1744089054831,-151.0,0.00021904,2]
[357496863,1744089054839,-500.0,0.00021904,2]
[357496864,1744089054848,-151.699805,0.00021904,2]
[357496865,1744089054858,-621.87,0.00021904,2]
[357496866,1744089054868,-737.3,0.00021904,2]
[357496867,1744089054879,-795.71,0.00021904,2]
[357496868,1744089054889,-1271.72,0.00021904,2]
[357496869,1744089054899,-1510.87,0.00021904,2]
[357496870,1744089054908,-260.457645,0.00021904,2]
[357496871,1744089054926,-151.0,0.0002163,2]
[357496872,1744089054935,-1276.992355,0.00021904,2]
[357496873,1744089054946,-180.03207,0.00021904,2]
[357496874,1744089054956,-951.08,0.00021904,2]
[357496875,1744089054966,-180.03207,0.00021904,2]
[357496876,1744089054976,-840.84,0.00021904,2]
[357496877,1744089054985,-500.0,0.00021904,2]
[357496878,1744089054995,-500.0,0.00021904,2]
[357496879,1744089055005,-1496.91,0.00021904,2]
[357496880,1744089055015,-853.7,0.00021904,2]
[357496881,1744089055024,-500.0,0.00021904,2]
[357496882,1744089055034,-500.0,0.00021905,2]
[357496883,1744089055043,-500.0,0.00021905,2]
[357496884,1744089055053,-500.0,0.00021905,2]
[357496885,1744089055062,-725.31,0.00021905,2]
[357496886,1744089055072,-2542.45,0.00021905,2]
[357496887,1744089055081,-500.0,0.00021905,2]
[357496888,1744089055091,-395.25267583,0.00021905,2]
[357496889,1744089055100,-500.0,0.00021905,2]
[357496890,1744089055110,-155.0,0.00021905,2]
[357496891,1744089055119,-500.0,0.00021905,2]
[357496892,1744089055130,-500.0,0.00021905,2]
[357496893,1744089055139,-864.99,0.00021905,2]
[357496894,1744089055149,-500.0,0.00021905,2]
[357496895,1744089055159,-500.0,0.00021906,2]
[357496896,1744089055169,-500.0,0.00021906,2]
[357496897,1744089055178,-200.0,0.00021917,2]
[357496898,1744089055188,-1003.156,0.00022,2]
[357496899,1744089055197,-151.49184114,0.00022078,2]
[357496900,1744089055207,-160.0,0.00022114,2]
[357496901,1744089055217,-837.41003169,0.00022116,2]
[357496902,1744089055227,-160.0,0.00022116,2]
[357496903,1744089055236,-160.0,0.00022116,2]
[357496904,1744089055246,-12530.86563381,0.00022116,2]
[357496905,1744089055255,-160.0,0.00022116,2]
[357496906,1744089055265,-419.46366559,0.00022116,2]
[357496907,1744089055274,-3306.77,0.00022175,2]
[357496908,1744089055283,-1076.62,0.00022175,2]
[357496909,1744089055293,-500.0,0.00022175,2]
[357496910,1744089055302,-871.92,0.00022176,2]
[357496911,1744089055311,-500.0,0.00022176,2]
[357496912,1744089055320,-1067.01,0.00022176,2]
[357496913,1744089055330,-500.0,0.00022176,2]
[357496914,1744089055339,-3362.4,0.00022176,2]
[357496915,1744089055349,-1275.39,0.00022176,2]
[357496916,1744089055358,-1270.81,0.00022176,2]
[357496917,1744089055368,-747.45,0.00022176,2]
[357496918,1744089055378,-1851.44,0.00022176,2]
[357496919,1744089055387,-716.97,0.00022176,2]
[357496920,1744089055396,-500.0,0.00022176,2]
[357496921,1744089055406,-1266.24,0.00022176,2]
[357496922,1744089055415,-1102.77,0.00022176,2]
[357496923,1744089055424,-794.99,0.00022176,2]
[357496924,1744089055438,-500.0,0.00022176,2]
[357496925,1744089055448,-500.0,0.00022176,2]
[357496926,1744089055458,-1509.7,0.00022176,2]
[357496927,1744089055467,-500.0,0.00022177,2]
[357496928,1744089055478,-500.0,0.00022177,2]
[357496929,1744089055487,-500.0,0.00022177,2]
[357496930,1744089055496,-500.0,0.00022177,2]
[357496931,1744089055506,-842.38,0.00022177,2]
[357496932,1744089055515,-500.0,0.00022177,2]
[357496933,1744089055525,-500.0,0.00022177,2]
[357496934,1744089055534,-615.44,0.00022177,2]
[357496935,1744089055543,-500.0,0.00022177,2]
[357496936,1744089055553,-500.0,0.00022177,2]
[357496937,1744089055562,-500.0,0.00022177,2]
[357496938,1744089055571,-500.0,0.00022177,2]
[357496939,1744089055581,-500.0,0.00022177,2]
[357496940,1744089055590,-500.0,0.00022177,2]
[357496941,1744089055599,-500.0,0.00022177,2]
[357496942,1744089055609,-500.0,0.00022177,2]
[357496943,1744089055618,-500.0,0.00022177,2]
[357496944,1744089055628,-500.0,0.00022177,2]
[357496945,1744089055637,-871.68,0.00022177,2]
[357496946,1744089055646,-500.0,0.00022177,2]
[357496947,1744089055655,-1498.88,0.00022177,2]
[357496948,1744089055665,-779.37,0.00022177,2]
[357496949,1744089055674,-500.0,0.00022177,2]
[357496950,1744089055684,-914.47,0.00022177,2]
[357496951,1744089055693,-500.0,0.00022177,2]
[357496952,1744089055703,-500.0,0.00022177,2]
[357496953,1744089055712,-500.0,0.00022177,2]
[357496954,1744089055722,-1105.01,0.00022177,2]
[357496955,1744089055731,-500.0,0.00022177,2]
[357496956,1744089055741,-164.92706677,0.00022177,2]
[357496957,1744089055750,-500.0,0.00022177,2]
[357496958,1744089055759,-500.0,0.00022177,2]
[357496959,1744089055769,-500.0,0.00022177,2]
[357496960,1744089055779,-870.44,0.00022177,2]
[357496961,1744089055789,-2158.84,0.00022177,2]
[357496962,1744089055799,-831.16,0.00022177,2]
[357496963,1744089055808,-500.0,0.00022177,2]
[357496964,1744089055818,-500.0,0.00022177,2]
[357496965,1744089055827,-500.0,0.00022177,2]
[357496966,1744089055837,-1599.58,0.00022177,2]
[357496967,1744089055847,-790.4,0.00022177,2]
[357496968,1744089055856,-890.44,0.00022177,2]
[357496969,1744089055866,-807.26,0.00022177,2]
[357496970,1744089055875,-500.0,0.00022177,2]
[357496971,1744089055884,-5903.44,0.00022177,2]
[357496972,1744089055894,-631.24,0.00022177,2]
[357496973,1744089055903,-588.4,0.00022177,2]
[357496974,1744089055913,-1110.71,0.00022178,2]
[357496975,1744089055923,-500.0,0.00022178,2]
[357496976,1744089055932,-500.0,0.00022178,2]
[357496977,1744089055942,-922.18,0.00022178,2]
[357496978,1744089055951,-500.0,0.00022178,2]
[357496979,1744089055962,-755.95,0.00022178,2]
[357496980,1744089055971,-718.24,0.00022178,2]
[357496981,1744089055980,-500.0,0.00022178,2]
[357496982,1744089055990,-858.2,0.00022178,2]
[357496983,1744089055999,-870.52,0.00022178,2]
[357496984,1744089056009,-500.0,0.00022178,2]
[357496985,1744089056018,-621.87,0.00022178,2]
[357496986,1744089056028,-737.3,0.00022178,2]
[357496987,1744089056038,-795.71,0.00022178,2]
[357496988,1744089056047,-1271.72,0.00022178,2]
[357496989,1744089056057,-1510.87,0.00022178,2]
[357496990,1744089056067,-1537.45,0.00022178,2]
[357496991,1744089056076,-951.08,0.00022178,2]
[357496992,1744089056085,-840.84,0.00022178,2]
[357496993,1744089056095,-500.0,0.00022178,2]
[357496994,1744089056105,-500.0,0.00022178,2]
[357496995,1744089056114,-1496.91,0.00022178,2]
[357496996,1744089056124,-853.7,0.00022178,2]
[357496997,1744089056133,-500.0,0.00022178,2]
[357496998,1744089056143,-500.0,0.00022179,2]
[357496999,1744089056153,-178.06448576,0.00022179,2]
[357497000,1744089056163,-500.0,0.00022179,2]
[357497001,1744089056172,-725.31,0.00022179,2]
[357497002,1744089056182,-2542.45,0.00022179,2]
[357497003,1744089056191,-500.0,0.00022179,2]
[357497004,1744089056201,-151.0,0.00022179,7]
[357497005,1744089056211,-500.0,0.00022179,2]
[357497006,1744089056221,-500.0,0.00022179,2]
[357497007,1744089056230,-500.0,0.00022179,2]
[357497008,1744089056240,-864.99,0.00022179,2]
[357497009,1744089056250,-500.0,0.00022179,2]
[357497010,1744089056260,-500.0,0.0002218,2]
[357497011,1744089056270,-500.0,0.0002218,2]
[357497012,1744089056280,-227.884879,0.0002218,7]
[357497013,1744089056291,-227.884879,0.0002218,7]
[357497014,1744089056301,-212.080037,0.0002218,7]
[357497015,1744089056311,-212.080037,0.0002218,7]
[357497016,1744089056321,-151.0,0.0002218,7]
[357497017,1744089056332,-173.912017,0.0002218,7]
[357497018,1744089056342,-151.0,0.0002218,2]
[357497019,1744089056353,-151.0,0.000222,7]
[357497020,1744089056363,-3306.77,0.00022449,2]
[357497021,1744089056373,-1076.62,0.00022449,2]
[357497022,1744089056383,-500.0,0.00022449,2]
[357497023,1744089056392,-871.92,0.0002245,2]
[357497024,1744089056403,-500.0,0.0002245,2]
[357497025,1744089056412,-1067.01,0.0002245,2]
[357497026,1744089056423,-500.0,0.0002245,2]
[357497027,1744089056436,-151.0,0.0002245,7]
[357497028,1744089056446,-3362.4,0.0002245,2]
[357497029,1744089056457,-1275.39,0.0002245,2]
[357497030,1744089056467,-1270.81,0.0002245,2]
[357497031,1744089056476,-151.0,0.0002245,7]
[357497032,1744089056486,-747.45,0.0002245,2]
[357497033,1744089056497,-1851.44,0.0002245,2]
[357497034,1744089056507,-716.97,0.0002245,2]
[357497035,1744089056518,-500.0,0.0002245,2]
[357497036,1744089056527,-1266.24,0.0002245,2]
[357497037,1744089056538,-1102.77,0.0002245,2]
[357497038,1744089056547,-794.99,0.0002245,2]
[357497039,1744089056557,-500.0,0.0002245,2]
[357497040,1744089056567,-205.39608108,0.0002245,2]
[357497041,1744089056576,-1509.7,0.0002245,2]
[357497042,1744089056586,-500.0,0.00022451,2]
[357497043,1744089056596,-600.53568804,0.00022451,2]
[357497044,1744089056605,-500.0,0.00022451,2]
[357497045,1744089056615,-500.0,0.00022451,2]
[357497046,1744089056624,-842.38,0.00022451,2]
[357497047,1744089056634,-500.0,0.00022451,2]
[357497048,1744089056644,-500.0,0.00022451,2]
[357497049,1744089056653,-615.44,0.00022451,2]
[357497050,1744089056663,-500.0,0.00022451,2]
[357497051,1744089056807,-500.0,0.00022451,2]
[357497052,1744089056817,-424.30713845,0.00022451,2]
[357497053,1744089056827,-500.0,0.00022451,2]
[357497054,1744089056837,-500.0,0.00022451,2]
[357497055,1744089056846,-500.0,0.00022451,2]
[357497056,1744089056856,-500.0,0.00022451,2]
[357497057,1744089056866,-500.0,0.00022451,2]
[357497058,1744089056876,-500.0,0.00022451,2]
[357497059,1744089056885,-151.0,0.00022451,7]
[357497060,1744089056894,-500.0,0.00022451,2]
[357497061,1744089056903,-871.68,0.00022451,2]
[357497062,1744089056913,-500.0,0.00022451,2]
[357497063,1744089056923,-1498.88,0.00022451,2]
[357497064,1744089056932,-779.37,0.00022451,2]
[357497065,1744089056941,-500.0,0.00022451,2]
[357497066,1744089056951,-914.47,0.00022451,2]
[357497067,1744089056961,-500.0,0.00022451,2]
[357497068,1744089056970,-500.0,0.00022451,2]
[357497069,1744089056980,-500.0,0.00022451,2]
[357497070,1744089056989,-1105.01,0.00022451,2]
[357497071,1744089056999,-500.0,0.00022451,2]
[357497072,1744089057008,-604.13463806,0.00022451,2]
[357497073,1744089057017,-335.63879661,0.00022451,2]
[357497074,1744089057026,-283.86152364,0.00022451,2]
[357497075,1744089057036,-870.44,0.00022451,2]
[357497076,1744089057046,-2158.84,0.00022451,2]
[357497077,1744089057056,-831.16,0.00022451,2]
[357497078,1744089057065,-500.0,0.00022451,2]
[357497079,1744089057074,-500.0,0.00022451,2]
[357497080,1744089057084,-500.0,0.00022451,2]
[357497081,1744089057093,-1599.58,0.00022451,2]
[357497082,1744089057103,-790.4,0.00022451,2]
[357497083,1744089057112,-890.44,0.00022451,2]
[357497084,1744089057122,-807.26,0.00022451,2]
[357497085,1744089057131,-500.0,0.00022451,2]
[357497086,1744089057140,-5903.44,0.00022451,2]
[357497087,1744089057150,-631.24,0.00022451,2]
[357497088,1744089057158,-588.4,0.00022451,2]
[357497089,1744089057168,-1058.82145451,0.00022452,2]
[357497090,1744089057182,-51.88854549,0.00022452,2]
[357497091,1744089057191,-426.37706407,0.00022452,2]
[357497092,1744089057200,-500.0,0.00022452,2]
[357497093,1744089057210,-922.18,0.00022452,2]
[357497094,1744089057219,-164.36358634,0.00022452,2]
[357497095,1744089059030,-500.0,0.00019983,2]
[357497096,1744089059039,-502.17396718,0.00019985,2]
[357497097,1744089059049,-500.0,0.00020257,2]
[357497098,1744089059058,-284.10422295,0.0002108,2]
[357497099,1744089059121,-1613.78577705,0.0002108,2]
[357497100,1744089059131,-447.73570872,0.00021354,2]
[357497101,1744089059169,-1450.15429128,0.00021354,2]
[357497102,1744089059178,-1897.89,0.00021628,2]
[357497103,1744089059187,-500.0,0.00021629,2]
[357497104,1744089059197,-201.220329,0.0002163,2]
[357497105,1744089059206,-151.0,0.0002163,2]
[357497106,1744089059215,-1897.89,0.00021902,2]
[357497107,1744089059225,-500.0,0.00021903,2]
[357497108,1744089059234,-1897.89,0.00022176,2]
[357497109,1744089059244,-500.0,0.00022177,2]